[Event "73rd RUS-ch Higher League 2020"]
[Site "Sochi"]
[Date "2020.10.09"]
[Round "2.6"]
[White "Rozum, Ivan"]
[Black "Khismatullin, Denis"]
[Result "1/2-1/2"]
[ECO "A14"]
[WhiteElo "2566"]
[BlackElo "2604"]
[Annotator "ChessBase"]
[PlyCount "94"]
[EventDate "2020.10.08"]
[EventType "swiss"]
[EventCountry "RUS"]
[SourceTitle "playchess.com"]
[Source "ChessBase"]
[SourceQuality "1"]
[TimeControl "40/5400+30:1800+30"]

1. c4 {[%emt 0:00:00]} Nf6 {[%emt 0:08:53]} 2. Nf3 {[%emt 0:01:19]} e6 {[%emt 0:01:43]} 3. g3 {[%emt 0:00:21]} d5 {[%emt 0:01:12]} 4. Bg2 {[%emt 0:01:53]} Be7 {[%emt 0:00:51]} 5. O-O {[%emt 0:00:09]} O-O {[%emt 0:00:06]} 6. b3 {[%emt 0:01:49]} c5 {[%emt 0:04:04]} 7. cxd5 {[%emt 0:05:40]} Nxd5 {[%emt 0:01:20]} 8. Bb2 {[%emt 0:00:07]} b6 {[%emt 0:00:09]} 9. d4 {[%emt 0:02:16]} Bb7 {[%emt 0:01:45]} 10. Re1 {[%emt 0:00:49]} Nc6 {[%emt 0:13:02]} 11. e4 {[%emt 0:04:06]} Nc7 {[%emt 0:02:52]} 12. dxc5 {[%emt 0:04:01]} Bxc5 {[%emt 0:17:21]} 13. a3 {[%emt 0:03:26]} Qxd1 {[%emt 0:08:48]} 14. Rxd1 {[%emt 0:00:06]} Rfd8 {[%emt 0:00:03]} 15. Nbd2 {[%emt 0:11:59]} Nb5 {[%emt 0:07:17]} 16. b4 {[%emt 0:04:24]} Bf8 {[%emt 0:02:32]} 17. Nb3 {[%emt 0:05:59]} Rxd1+ {[%emt 0:03:53]} 18. Rxd1 {[%emt 0:00:17]} Rd8 {[%emt 0:01:24]} 19. Rxd8 {[%emt 0:02:06]} Nxd8 {[%emt 0:00:06]} 20. Nfd2 {[%emt 0:03:24]} f6 {[%emt 0:07:07]} 21. f4 {[%emt 0:03:16]} Kf7 {[%emt 0:00:06]} 22. Kf2 {[%emt 0:01:50]} Nd6 {[%emt 0:03:59]} 23. Bf3 {[%emt 0:05:10]} Ba6 24. e5 {[%emt 0:04:28]} Nc4 {[%emt 0:09:28]} 25. Nxc4 {[%emt 0:01:35]} Bxc4 {[%emt 0:00:03]} 26. Nd2 {[%emt 0:00:09]} Bb5 {[%emt 0:01:03]} 27. exf6 {[%emt 0:04:32]} gxf6 {[%emt 0:00:02]} 28. Ne4 {[%emt 0:00:12]} f5 {[%emt 0:01:38]} 29. Bh5+ {[%emt 0:02:43]} Ke7 {[%emt 0:00:37]} 30. Ng5 {[%emt 0:02:44]} h6 {[%emt 0:02:03]} 31. Nh7 {[%emt 0:00:15]} Nf7 {[%emt 0:00:09]} 32. h3 {[%emt 0:03:11]} Bd3 {[%emt 0:01:36]} 33. Bg6 {[%emt 0:00:56]} a5 {[%emt 0:00:45]} 34. Bd4 {[%emt 0:02:51]} axb4 {[%emt 0:00:07]} 35. axb4 {[%emt 0:01:05]} e5 {[%emt 0:00:36]} 36. Bxb6 {[%emt 0:00:52]} Bg7 {[%emt 0:00:13]} 37. Bc5+ {[%emt 0:02:01]} Nd6 {[%emt 0:00:47]} 38. g4 {[%emt 0:00:47]} Ke6 {[%emt 0:00:45]} 39. Bxd6 {[%emt 0:07:00]} Kxd6 {[%emt 0:00:11]} 40. Bxf5 {[%emt 0:00:00]} Bb5 {[%emt 0:00:00]} 41. fxe5+ {[%emt 0:07:17]} Bxe5 {[%emt 0:03:23]} 42. g5 {[%emt 0:05:09]} Bd4+ {[%emt 0:06:36]} 43. Kf3 {[%emt 0:04:00]} Ke5 {[%emt 0:00:28]} 44. Be4 {[%emt 0:01:08]} hxg5 {[%emt 0:00:30]} 45. Nxg5 {[%emt 0:00:12]} Bc3 {[%emt 0:03:10]} 46. Nf7+ {[%emt 0:01:23]} Ke6 {[%emt 0:00:17]} 47. Nd8+ {[%emt 0:00:20]} Ke5 1/2-1/2

[Event "73rd RUS-ch Higher League 2020"]
[Site "Sochi"]
[Date "2020.10.09"]
[Round "2.7"]
[White "Chigaev, Maksim"]
[Black "Klimentov, Evgeny"]
[Result "1-0"]
[ECO "B13"]
[WhiteElo "2598"]
[BlackElo "2222"]
[Annotator "ChessBase"]
[PlyCount "93"]
[EventDate "2020.10.08"]
[EventType "swiss"]
[EventCountry "RUS"]
[SourceTitle "playchess.com"]
[Source "ChessBase"]
[SourceQuality "1"]
[TimeControl "40/5400+30:1800+30"]

1. e4 {[%emt 0:00:00]} c6 {[%emt 0:00:00]} 2. d4 {[%emt 0:00:00]} d5 {[%emt 0:00:01]} 3. exd5 {[%emt 0:00:00]} cxd5 {[%emt 0:00:09]} 4. Bd3 {[%emt 0:00:00]} Nf6 {[%emt 0:00:53]} 5. c3 {[%emt 0:00:07]} Nc6 {[%emt 0:00:22]} 6. Bf4 {[%emt 0:00:11]} Bg4 {[%emt 0:01:22]} 7. Qb3 {[%emt 0:01:15]} Qc8 {[%emt 0:00:56]} 8. Nd2 {[%emt 0:00:11]} e6 {[%emt 0:00:33]} 9. Ngf3 {[%emt 0:00:14]} Be7 {[%emt 0:00:29]} 10. O-O {[%emt 0:00:46]} O-O {[%emt 0:00:15]} 11. Rae1 {[%emt 0:01:24]} Bh5 {[%emt 0:01:34]} 12. Ne5 {[%emt 0:02:30]} Nxe5 {[%emt 0:02:59]} 13. Bxe5 {[%emt 0:04:39]} Bg6 {[%emt 0:02:47]} 14. Bxg6 {[%emt 0:04:28]} hxg6 {[%emt 0:00:10]} 15. h3 {[%emt 0:01:46]} Qc6 {[%emt 0:03:43]} 16. a4 {[%emt 0:01:19]} Rfc8 {[%emt 0:01:15]} 17. Re3 {[%emt 0:09:10]} Nd7 {[%emt 0:06:41]} 18. Nf3 {[%emt 0:03:40]} Nb6 {[%emt 0:03:01]} 19. Ra1 {[%emt 0:00:10]} Nc4 {[%emt 0:00:29]} 20. Re2 {[%emt 0:00:06]} a6 {[%emt 0:10:00]} 21. Qd1 {[%emt 0:07:28]} b5 {[%emt 0:02:33]} 22. Bf4 {[%emt 0:00:07]} Bd6 {[%emt 0:10:23]} 23. Bxd6 {[%emt 0:04:45]} Nxd6 {[%emt 0:01:23]} 24. Ne5 {[%emt 0:03:31]} Qc7 {[%emt 0:01:02]} 25. Nd3 {[%emt 0:02:25]} Ne4 {[%emt 0:03:46]} 26. a5 {[%emt 0:01:36]} Re8 {[%emt 0:02:25]} 27. f3 {[%emt 0:03:11]} Nd6 {[%emt 0:02:04]} 28. Qe1 {[%emt 0:00:40]} Rec8 {[%emt 0:01:46]} 29. Nc5 {[%emt 0:07:14]} Nb7 {[%emt 0:01:48]} 30. b4 {[%emt 0:03:23]} Nxc5 {[%emt 0:03:19]} 31. dxc5 {[%emt 0:00:10]} Re8 {[%emt 0:00:45]} 32. Rd1 {[%emt 0:00:16]} Rad8 {[%emt 0:00:12]} 33. Re5 {[%emt 0:00:28]} Qc6 {[%emt 0:02:24]} 34. f4 {[%emt 0:00:41]} f6 {[%emt 0:00:24]} 35. Re3 {[%emt 0:00:06]} Kf7 {[%emt 0:00:14]} 36. Qg3 {[%emt 0:01:16]} Re7 {[%emt 0:05:53]} 37. Qg4 {[%emt 0:01:01]} e5 {[%emt 0:04:00]} 38. fxe5 {[%emt 0:05:44]} fxe5 {[%emt 0:00:51]} 39. Qh4 {[%emt 0:00:36]} Rde8 {[%emt 0:03:33]} 40. Qh7 {[%emt 0:00:00]} Rf8 {[%emt 0:00:00]} 41. Rf3+ {[%emt 0:03:10]} Ke8 {[%emt 0:03:09]} 42. Rxf8+ {[%emt 0:00:07]} Kxf8 {[%emt 0:00:06]} 43. Qh8+ {[%emt 0:00:10]} Kf7 {[%emt 0:00:07]} 44. Rf1+ {[%emt 0:00:56]} Ke6 {[%emt 0:00:07]} 45. Qg8+ {[%emt 0:00:20]} Kd7 {[%emt 0:00:06]} 46. Rd1 {[%emt 0:01:45]} Kc7 {[%emt 0:03:34]} 47. Qxd5 {[%emt 0:00:16]} 1-0

[Event "73rd RUS-ch Higher League 2020"]
[Site "Sochi"]
[Date "2020.10.09"]
[Round "2.8"]
[White "Samusenko, Maksim"]
[Black "Sakaev, Konstantin"]
[Result "1/2-1/2"]
[ECO "B23"]
[WhiteElo "2459"]
[BlackElo "2596"]
[Annotator "ChessBase"]
[PlyCount "90"]
[EventDate "2020.10.08"]
[EventType "swiss"]
[EventCountry "RUS"]
[SourceTitle "playchess.com"]
[Source "ChessBase"]
[SourceQuality "1"]
[TimeControl "40/5400+30:1800+30"]

1. e4 {[%emt 0:00:00]} c5 {[%emt 0:00:00]} 2. Nc3 {[%emt 0:00:27]} d6 {[%emt 0:00:23]} 3. d4 {[%emt 0:00:26]} cxd4 {[%emt 0:00:11]} 4. Qxd4 {[%emt 0:00:10]} Nc6 {[%emt 0:00:09]} 5. Qd2 {[%emt 0:00:22]} Nf6 {[%emt 0:00:51]} 6. b3 {[%emt 0:01:06]} a6 {[%emt 0:01:56]} 7. Bb2 {[%emt 0:00:59]} e6 {[%emt 0:00:20]} 8. O-O-O {[%emt 0:01:04]} Be7 {[%emt 0:01:37]} 9. Kb1 {[%emt 0:08:10]} b5 {[%emt 0:02:53]} 10. g4 {[%emt 0:02:24]} b4 {[%emt 0:10:47]} 11. Na4 {[%emt 0:10:39]} e5 {[%emt 0:15:02]} 12. h3 {[%emt 0:08:07]} Bb7 {[%emt 0:07:53]} 13. Bg2 {[%emt 0:11:38]} Nd7 {[%emt 0:14:53]} 14. f4 {[%emt 0:07:06]} Qc7 {[%emt 0:11:52]} 15. Nf3 {[%emt 0:08:17]} a5 {[%emt 0:04:34]} 16. g5 {[%emt 0:12:58]} O-O-O {[%emt 0:10:43]} 17. fxe5 {[%emt 0:06:42]} dxe5 {[%emt 0:01:23]} 18. Qe3 {[%emt 0:00:28]} Kb8 {[%emt 0:00:45]} 19. h4 {[%emt 0:00:55]} h6 {[%emt 0:01:51]} 20. Rhe1 {[%emt 0:07:43]} hxg5 {[%emt 0:01:44]} 21. hxg5 {[%emt 0:00:07]} f6 {[%emt 0:00:45]} 22. Bf1 {[%emt 0:01:48]} Na7 {[%emt 0:00:44]} 23. gxf6 {[%emt 0:00:33]} gxf6 {[%emt 0:00:06]} 24. c3 {[%emt 0:01:08]} Nc5 {[%emt 0:00:18]} 25. Rxd8+ {[%emt 0:02:56]} Rxd8 {[%emt 0:00:08]} 26. cxb4 {[%emt 0:00:42]} Nxa4 {[%emt 0:02:11]} 27. bxa4 {[%emt 0:00:04]} axb4 {[%emt 0:00:54]} 28. Rc1 {[%emt 0:01:56]} Qa5 {[%emt 0:01:05]} 29. Nd2 {[%emt 0:01:03]} Qxa4 {[%emt 0:00:42]} 30. Nb3 {[%emt 0:00:36]} Rc8 {[%emt 0:01:04]} 31. Rxc8+ {[%emt 0:01:36]} Nxc8 {[%emt 0:00:20]} 32. Bd3 {[%emt 0:00:41]} Ba6 {[%emt 0:02:30]} 33. Qe2 {[%emt 0:01:39]} Bxd3+ {[%emt 0:00:50]} 34. Qxd3 {[%emt 0:00:02]} Qc6 {[%emt 0:00:49]} 35. Na5 {[%emt 0:00:31]} Qa8 {[%emt 0:02:34]} 36. Nc4 {[%emt 0:00:48]} Qc6 {[%emt 0:00:43]} 37. Na5 {[%emt 0:00:08]} Qa8 {[%emt 0:00:10]} 38. Nc4 {[%emt 0:00:11]} Kc7 {[%emt 0:02:27]} 39. Bc1 {[%emt 0:02:04]} Nd6 {[%emt 0:00:44]} 40. Nxd6 {[%emt 0:00:00]} Bxd6 {[%emt 0:00:00]} 41. Bd2 {[%emt 0:04:26]} Qg8 {[%emt 0:03:14]} 42. Qc2+ {[%emt 0:05:13]} Kb7 {[%emt 0:05:40]} 43. Qd3 {[%emt 0:00:31]} Kc7 {[%emt 0:01:25]} 44. Qc2+ {[%emt 0:00:08]} Kb7 {[%emt 0:00:06]} 45. Qd3 {[%emt 0:00:06]} Kc7 {[%emt 0:00:05]} 1/2-1/2

[Event "73rd RUS-ch Higher League 2020"]
[Site "Sochi"]
[Date "2020.10.09"]
[Round "2.16"]
[White "Pridorozhni, Aleksei"]
[Black "Shuvalova, Polina"]
[Result "1/2-1/2"]
[ECO "B12"]
[WhiteElo "2596"]
[BlackElo "2441"]
[Annotator "ChessBase"]
[PlyCount "95"]
[EventDate "2020.10.08"]
[EventType "swiss"]
[EventCountry "RUS"]
[SourceTitle "playchess.com"]
[Source "ChessBase"]
[SourceQuality "1"]
[TimeControl "40/5400+30:1800+30"]

1. e4 {[%emt 0:00:00]} c6 {[%emt 0:00:00]} 2. d4 {[%emt 0:00:02]} d5 {[%emt 0:00:00]} 3. e5 {[%emt 0:00:06]} Bf5 {[%emt 0:00:00]} 4. h4 {[%emt 0:00:15]} h5 {[%emt 0:00:00]} 5. Bd3 {[%emt 0:00:34]} Bxd3 {[%emt 0:00:00]} 6. Qxd3 {[%emt 0:00:06]} Qa5+ {[%emt 0:00:02]} 7. Nd2 {[%emt 0:00:53]} e6 {[%emt 0:00:08]} 8. Ngf3 {[%emt 0:00:23]} Nh6 {[%emt 0:00:35]} 9. O-O {[%emt 0:01:01]} Nf5 {[%emt 0:00:08]} 10. c4 {[%emt 0:00:48]} Be7 {[%emt 0:00:10]} 11. g3 {[%emt 0:00:12]} O-O {[%emt 0:00:15]} 12. a3 {[%emt 0:01:17]} dxc4 {[%emt 0:06:37]} 13. Nxc4 {[%emt 0:02:55]} Qd5 {[%emt 0:00:30]} 14. Bg5 {[%emt 0:02:12]} Bxg5 {[%emt 0:03:44]} 15. Nxg5 {[%emt 0:01:07]} Qxd4 {[%emt 0:11:55]} 16. Qc2 {[%emt 0:02:26]} Qc5 {[%emt 0:14:21]} 17. b4 {[%emt 0:03:38]} Qe7 {[%emt 0:00:07]} 18. Nd6 {[%emt 0:00:32]} g6 {[%emt 0:08:21]} 19. Rfe1 {[%emt 0:12:21]} Na6 {[%emt 0:09:27]} 20. Rad1 {[%emt 0:06:45]} Rad8 {[%emt 0:01:14]} 21. Nxf5 {[%emt 0:02:18]} exf5 {[%emt 0:00:40]} 22. Rxd8 {[%emt 0:00:41]} Rxd8 {[%emt 0:02:45]} 23. e6 {[%emt 0:00:12]} f6 {[%emt 0:05:09]} 24. Nf7 {[%emt 0:00:22]} Re8 {[%emt 0:05:17]} 25. Qd2 {[%emt 0:01:48]} Qf8 {[%emt 0:01:17]} 26. Qd6 {[%emt 0:01:18]} Re7 {[%emt 0:06:54]} 27. Nd8 {[%emt 0:07:16]} Qe8 {[%emt 0:01:41]} 28. Kg2 {[%emt 0:05:04]} Kg7 {[%emt 0:03:49]} 29. Kh2 {[%emt 0:04:44]} Nc7 {[%emt 0:06:05]} 30. a4 {[%emt 0:08:32]} Na6 {[%emt 0:07:28]} 31. Rd1 {[%emt 0:00:39]} Kg8 {[%emt 0:01:20]} 32. Qd4 {[%emt 0:09:49]} Kg7 {[%emt 0:02:02]} 33. Qc4 {[%emt 0:00:30]} Nc7 {[%emt 0:01:10]} 34. Rd6 {[%emt 0:00:07]} Nd5 {[%emt 0:00:41]} 35. Qd4 {[%emt 0:01:32]} a6 {[%emt 0:00:21]} 36. Kg2 {[%emt 0:02:11]} Nc7 {[%emt 0:01:04]} 37. Qc4 {[%emt 0:04:30]} Nd5 {[%emt 0:00:20]} 38. b5 {[%emt 0:01:04]} axb5 {[%emt 0:00:05]} 39. axb5 {[%emt 0:00:04]} Nc7 {[%emt 0:03:08]} 40. bxc6 {[%emt 0:00:00]} bxc6 {[%emt 0:00:00]} 41. Qxc6 {[%emt 0:03:29]} Kf8 {[%emt 0:04:13]} 42. Qc4 {[%emt 0:19:37]} Kg7 {[%emt 0:04:31]} 43. Kh2 {[%emt 0:03:37]} Nb5 {[%emt 0:04:40]} 44. Rd7 {[%emt 0:07:10]} Rxd7 {[%emt 0:01:01]} 45. exd7 {[%emt 0:00:06]} Qxd8 {[%emt 0:03:23]} 46. Qc8 {[%emt 0:00:33]} Qb6 {[%emt 0:00:06]} 47. d8=Q {[%emt 0:00:09]} Qxf2+ {[%emt 0:00:05]} 48. Kh1 {[%emt 0:00:03]} 1/2-1/2

[Event "73rd RUS-ch Higher League 2020"]
[Site "Sochi"]
[Date "2020.10.09"]
[Round "2.17"]
[White "Zabotin, Alexander"]
[Black "Lintchevski, Daniil"]
[Result "1/2-1/2"]
[ECO "D10"]
[WhiteElo "2486"]
[BlackElo "2559"]
[Annotator "ChessBase"]
[PlyCount "28"]
[EventDate "2020.10.08"]
[EventType "swiss"]
[EventCountry "RUS"]
[SourceTitle "playchess.com"]
[Source "ChessBase"]
[SourceQuality "1"]
[TimeControl "40/5400+30:1800+30"]

1. d4 {[%emt 0:00:00]} d5 {[%emt 0:00:00]} 2. c4 {[%emt 0:00:00]} c6 {[%emt 0:00:01]} 3. cxd5 {[%emt 0:00:19]} cxd5 {[%emt 0:00:07]} 4. Bg5 {[%emt 0:00:06]} h6 {[%emt 0:02:47]} 5. Bh4 {[%emt 0:00:11]} Qb6 {[%emt 0:00:04]} 6. Nc3 {[%emt 0:00:05]} e6 {[%emt 0:00:05]} 7. Rc1 {[%emt 0:00:22]} Qxb2 {[%emt 0:24:59]} 8. Nxd5 {[%emt 0:22:23]} exd5 {[%emt 0:00:30]} 9. Rxc8+ {[%emt 0:00:30]} Kd7 {[%emt 0:00:30]} 10. Rxf8 {[%emt 0:00:30]} Qb4+ {[%emt 0:05:17]} 11. Qd2 {[%emt 0:00:00]} Qb1+ {[%emt 0:00:45]} 12. Qd1 {[%emt 0:00:00]} Qb4+ {[%emt 0:00:04]} 13. Qd2 {[%emt 0:00:00]} Qb1+ {[%emt 0:01:38]} 14. Qd1 {[%emt 0:01:11]} Qb4+ 1/2-1/2

[Event "73rd RUS-ch Higher League 2020"]
[Site "Sochi"]
[Date "2020.10.09"]
[Round "2.20"]
[White "Rodchenkov, Vitaly"]
[Black "Nesterov, Arseniy"]
[Result "1/2-1/2"]
[ECO "A46"]
[WhiteElo "2321"]
[BlackElo "2510"]
[Annotator "ChessBase"]
[PlyCount "135"]
[EventDate "2020.10.08"]
[EventType "swiss"]
[EventCountry "RUS"]
[SourceTitle "playchess.com"]
[Source "ChessBase"]
[SourceQuality "1"]
[TimeControl "40/5400+30:1800+30"]

1. d4 {[%emt 0:00:00]} Nf6 {[%emt 0:00:00]} 2. Nf3 {[%emt 0:01:46]} e6 {[%emt 0:00:38]} 3. Bg5 {[%emt 0:00:56]} d5 {[%emt 0:00:50]} 4. e3 {[%emt 0:00:30]} c5 {[%emt 0:03:57]} 5. Nbd2 {[%emt 0:00:12]} Nc6 {[%emt 0:02:09]} 6. c3 {[%emt 0:00:14]} Be7 {[%emt 0:06:46]} 7. Bd3 {[%emt 0:00:10]} O-O {[%emt 0:02:18]} 8. Ne5 {[%emt 0:01:32]} cxd4 {[%emt 0:08:20]} 9. exd4 {[%emt 0:01:03]} Nxe5 {[%emt 0:02:05]} 10. dxe5 {[%emt 0:00:10]} Nd7 {[%emt 0:01:05]} 11. Bxe7 {[%emt 0:09:55]} Qxe7 12. O-O Nxe5 {[%emt 0:14:06]} 13. Bxh7+ {[%emt 0:07:05]} Kxh7 {[%emt 0:00:02]} 14. Qh5+ {[%emt 0:00:09]} Kg8 {[%emt 0:00:05]} 15. Qxe5 {[%emt 0:00:06]} f6 {[%emt 0:00:22]} 16. Qd4 {[%emt 0:01:07]} b6 {[%emt 0:13:17]} 17. Rfe1 {[%emt 0:02:15]} Qf7 {[%emt 0:03:46]} 18. f4 {[%emt 0:01:42]} Bd7 {[%emt 0:01:34]} 19. Nf3 {[%emt 0:01:36]} Rac8 {[%emt 0:00:33]} 20. Qd2 {[%emt 0:01:10]} Rc4 {[%emt 0:07:55]} 21. Rad1 {[%emt 0:01:10]} Bc8 {[%emt 0:02:01]} 22. Nd4 {[%emt 0:01:17]} Re8 {[%emt 0:00:30]} 23. b3 {[%emt 0:13:54]} Rc7 {[%emt 0:03:50]} 24. Nf3 {[%emt 0:00:43]} Rce7 {[%emt 0:04:51]} 25. Re3 {[%emt 0:01:27]} Qh5 {[%emt 0:04:01]} 26. Rde1 {[%emt 0:00:54]} Qf5 {[%emt 0:02:02]} 27. Qd4 {[%emt 0:01:12]} Bb7 {[%emt 0:04:35]} 28. h3 {[%emt 0:00:45]} Qg6 {[%emt 0:02:00]} 29. Kh2 {[%emt 0:01:49]} Qf7 {[%emt 0:00:28]} 30. Qd2 {[%emt 0:01:23]} Bc8 {[%emt 0:01:57]} 31. Qd4 {[%emt 0:05:08]} Rc7 {[%emt 0:01:55]} 32. Kh1 {[%emt 0:04:43]} Bd7 {[%emt 0:02:56]} 33. Qd2 {[%emt 0:02:23]} Rc5 {[%emt 0:01:03]} 34. Nd4 {[%emt 0:01:41]} a5 {[%emt 0:02:33]} 35. Qf2 {[%emt 0:06:17]} a4 {[%emt 0:00:51]} 36. Qe2 {[%emt 0:02:43]} b5 {[%emt 0:01:15]} 37. Qd2 {[%emt 0:02:41]} Rc7 {[%emt 0:00:32]} 38. Qd3 {[%emt 0:02:49]} axb3 {[%emt 0:00:41]} 39. axb3 {[%emt 0:00:06]} Rec8 {[%emt 0:00:54]} 40. Nxb5 {[%emt 0:00:00]} Bxb5 {[%emt 0:00:00]} 41. Qxb5 {[%emt 0:04:26]} Rxc3 {[%emt 0:00:25]} 42. Rxe6 {[%emt 0:01:09]} Rc1 {[%emt 0:00:23]} 43. Kh2 {[%emt 0:07:25]} Rxe1 {[%emt 0:00:03]} 44. Rxe1 {[%emt 0:00:05]} d4 {[%emt 0:01:01]} 45. Qb6 {[%emt 0:04:24]} Qd5 {[%emt 0:03:43]} 46. Qe6+ {[%emt 0:04:54]} Qxe6 {[%emt 0:00:06]} 47. Rxe6 {[%emt 0:00:02]} Rb8 {[%emt 0:00:23]} 48. Rd6 {[%emt 0:00:21]} Rb4 {[%emt 0:00:14]} 49. f5 {[%emt 0:04:52]} Rxb3 {[%emt 0:01:37]} 50. Rxd4 {[%emt 0:00:38]} Rb5 {[%emt 0:00:07]} 51. g4 {[%emt 0:00:57]} Rb2+ {[%emt 0:00:08]} 52. Kg3 {[%emt 0:00:32]} Rb3+ {[%emt 0:00:04]} 53. Kh4 {[%emt 0:00:24]} Ra3 {[%emt 0:00:22]} 54. Rd1 {[%emt 0:00:15]} Kf7 {[%emt 0:00:50]} 55. Rg1 {[%emt 0:01:11]} Ra8 {[%emt 0:00:36]} 56. Kg3 {[%emt 0:01:21]} Ra3+ {[%emt 0:00:07]} 57. Kh2 {[%emt 0:00:11]} Ra2+ {[%emt 0:00:20]} 58. Rg2 {[%emt 0:00:10]} Ra3 {[%emt 0:00:03]} 59. Rf2 {[%emt 0:00:11]} Rb3 {[%emt 0:00:21]} 60. Kg2 {[%emt 0:00:07]} Ra3 {[%emt 0:00:11]} 61. Rf3 {[%emt 0:00:56]} Ra2+ {[%emt 0:00:13]} 62. Kg3 {[%emt 0:00:07]} Ra1 {[%emt 0:00:05]} 63. Rb3 {[%emt 0:00:41]} Rc1 {[%emt 0:00:27]} 64. Kh4 {[%emt 0:01:04]} Kg8 {[%emt 0:00:18]} 65. Kh5 {[%emt 0:00:56]} Kh7 {[%emt 0:00:03]} 66. Rb7 {[%emt 0:03:25]} Rc5 {[%emt 0:00:48]} 67. Kh4 {[%emt 0:02:46]} Rc3 {[%emt 0:01:20]} 68. Ra7 1/2-1/2

[Event "73rd RUS-ch Higher League 2020"]
[Site "Sochi"]
[Date "2020.10.09"]
[Round "2.21"]
[White "Nazaretyan, Tigran"]
[Black "Belyakov, Bogdan"]
[Result "0-1"]
[ECO "D91"]
[WhiteElo "2308"]
[BlackElo "2458"]
[Annotator "ChessBase"]
[PlyCount "110"]
[EventDate "2020.10.08"]
[EventType "swiss"]
[EventCountry "RUS"]
[SourceTitle "playchess.com"]
[Source "ChessBase"]
[SourceQuality "1"]
[TimeControl "40/5400+30:1800+30"]

1. d4 {[%emt 0:00:00]} Nf6 {[%emt 0:00:25]} 2. c4 {[%emt 0:00:00]} g6 {[%emt 0:00:14]} 3. Nc3 {[%emt 0:00:15]} d5 {[%emt 0:00:33]} 4. Nf3 {[%emt 0:00:36]} Bg7 {[%emt 0:00:18]} 5. Bg5 {[%emt 0:00:27]} dxc4 {[%emt 0:00:13]} 6. e4 {[%emt 0:00:24]} c5 {[%emt 0:00:09]} 7. d5 {[%emt 0:00:30]} b5 {[%emt 0:00:07]} 8. d6 {[%emt 0:00:58]} Bb7 {[%emt 0:06:41]} 9. e5 {[%emt 0:02:21]} Ne4 {[%emt 0:14:19]} 10. Nxe4 {[%emt 0:01:06]} Bxe4 {[%emt 0:00:11]} 11. a4 {[%emt 0:01:04]} f6 {[%emt 0:10:17]} 12. axb5 {[%emt 0:01:20]} O-O {[%emt 0:12:02]} 13. Bxc4+ {[%emt 0:04:16]} Kh8 {[%emt 0:00:06]} 14. Qe2 {[%emt 0:11:34]} Bxf3 {[%emt 0:03:17]} 15. Qxf3 {[%emt 0:00:24]} Nd7 {[%emt 0:00:12]} 16. exf6 {[%emt 0:01:49]} Nxf6 {[%emt 0:08:58]} 17. dxe7 {[%emt 0:03:41]} Qxe7+ {[%emt 0:00:08]} 18. Qe3 {[%emt 0:02:42]} Qxe3+ {[%emt 0:11:02]} 19. Bxe3 {[%emt 0:00:53]} Ng4 {[%emt 0:00:13]} 20. O-O {[%emt 0:04:32]} Nxe3 {[%emt 0:03:09]} 21. fxe3 {[%emt 0:00:22]} Rxf1+ {[%emt 0:00:18]} 22. Kxf1 {[%emt 0:02:12]} Bxb2 {[%emt 0:01:09]} 23. Ra2 {[%emt 0:00:35]} Be5 {[%emt 0:01:52]} 24. Ke2 {[%emt 0:00:47]} Bxh2 {[%emt 0:04:44]} 25. b6 {[%emt 0:02:35]} a5 {[%emt 0:00:04]} 26. b7 {[%emt 0:00:21]} Ra7 {[%emt 0:00:07]} 27. Bd5 {[%emt 0:01:18]} a4 {[%emt 0:00:09]} 28. Kd3 {[%emt 0:01:03]} a3 {[%emt 0:02:27]} 29. Rf2 {[%emt 0:04:05]} Kg7 {[%emt 0:02:21]} 30. Rf7+ {[%emt 0:10:24]} Kh6 {[%emt 0:00:16]} 31. Ba2 {[%emt 0:02:53]} Ra4 {[%emt 0:02:22]} 32. Re7 {[%emt 0:04:10]} Rb4 {[%emt 0:02:25]} 33. Re4 {[%emt 0:02:15]} Rxb7 {[%emt 0:00:58]} 34. Rh4+ {[%emt 0:02:35]} Kg7 {[%emt 0:00:55]} 35. Rxh2 {[%emt 0:00:27]} Rb2 {[%emt 0:00:06]} 36. Bc4 {[%emt 0:01:07]} a2 {[%emt 0:00:08]} 37. Bxa2 {[%emt 0:00:15]} Rxa2 {[%emt 0:00:05]} 38. Kc4 {[%emt 0:00:43]} Re2 {[%emt 0:00:23]} 39. Kd3 {[%emt 0:06:18]} Rf2 {[%emt 0:00:12]} 40. Kc4 {[%emt 0:00:00]} Re2 {[%emt 0:00:00]} 41. Kd3 {[%emt 0:10:58]} Rf2 {[%emt 0:05:13]} 42. Kc4 {[%emt 0:00:03]} Rf5 {[%emt 0:15:53]} 43. g4 {[%emt 0:15:16]} Rg5 {[%emt 0:03:35]} 44. Rf2 {[%emt 0:03:27]} Rxg4+ {[%emt 0:00:31]} 45. Kxc5 {[%emt 0:00:07]} h5 {[%emt 0:09:09]} 46. Kd5 {[%emt 0:00:50]} h4 {[%emt 0:00:19]} 47. e4 {[%emt 0:13:13]} h3 {[%emt 0:00:06]} 48. e5 {[%emt 0:02:33]} Rh4 {[%emt 0:08:38]} 49. Rh2 {[%emt 0:01:14]} g5 {[%emt 0:00:44]} 50. Rh1 {[%emt 0:07:19]} g4 {[%emt 0:00:50]} 51. Ke4 {[%emt 0:00:18]} g3+ {[%emt 0:00:06]} 52. Kf3 {[%emt 0:00:03]} g2 {[%emt 0:00:05]} 53. Re1 {[%emt 0:01:09]} Rg4 {[%emt 0:00:47]} 54. Rg1 {[%emt 0:01:37]} h2 {[%emt 0:00:26]} 55. Rxg2 {[%emt 0:00:06]} h1=Q {[%emt 0:00:05]} 0-1